Cogmind - Beta 16.1 @@@ ROGUE MODE // 2026.02.14 @ 23:48:32 Player: BatSpy Result: Destroyed by S-27 Virus with Autogun Performance ------------- Evolutions (3) 1500 Regions Visited (9) 1800 Robots Destroyed (55) 275 Value Destroyed (1852) 1852 Prototype IDs (4) 80 Alien Tech Used (0) 0 Bonus (1335) 1335 TOTAL SCORE: 6842 Bonus ------- High Alert Combat Kills 69 Follower Combat Kills 66 Entered Garrisons 400 Used RIF Installer 500 Aligned with FarCom 300 Cogmind --------- Core Integrity 0/700 Matter 201/300 Energy 137/175 System Corruption 9% Temperature Cool (0) Movement Flying (114) Ox1 Location -7/Factory Parts ------- > --- POWER (2) -------- Light Ion Engine Micro Nuclear Core > --- PROPULSION (5) --- Xenon Bombardment Thruster Xenon Bombardment Thruster Xenon Bombardment Thruster > --- UTILITY (4) ------ Improved Cooling System Small Storage Unit Improved Light Armor Plating Improved Shield Generator > --- WEAPON (2) ------- (None) > --- INVENTORY (8) ---- Improved Power Shielding Improved Shield Generator Relay Coupler [Cutter] (28) Trap Reconfigurator AWS/Thermal Flak Gun Gauss Cannon Peak State ------------ > --- POWER ------------ Light Ion Engine Light Ion Engine > --- PROPULSION ------- Improved VTOL Module Flying Fortress v7 > --- UTILITY ---------- Small Storage Unit Advanced Visual Processing Unit Hardened Medium Armor Plating Trap Reconfigurator > --- WEAPON ----------- AWS/Thermal > --- INVENTORY -------- Improved VTOL Module Improved VTOL Module Improved VTOL Module Reaction Control System Improved Power Shielding [Rating: 71] Favorites ----------- Power Light Ion Engine Engine Light Ion Engine Power Core Light Nuclear Core Propulsion Flight Unit Treads Medium Treads Leg Improved Carbon-fiber Leg Flight Unit Flight Unit Utility Small Storage Unit Device Trap Reconfigurator Storage Small Storage Unit Processor Advanced Visual Processing Unit Hackware Relay Coupler [Demolisher] Protection Hardened Medium Armor Plating Weapon AWS/Thermal Energy Gun AWS/Thermal Energy Cannon Improved EM Pulse Cannon Ballistic Gun Light Assault Rifle Ballistic Cannon Gauss Cannon Special Weapon Mining Laser Build | -11 -10 -10 -10 -9 -8 -8 -7 -7 -7 ------- Run | Yrd Mat Min Exi Min Mat Gar Fac Gar Fac Slots Evolved 6 | . . . . . 4 . 2 . . Power 1 | . . . . . 1 . . . . Propulsion 3 | . . . . . 2 . 1 . . Utility 2 | . . . . . 1 . 1 . . Weapon . | . . . . . . . . . . Parts Attached 57 | 6 . 10 2 2 5 1 2 14 15 Power 9 | 1 . 2 . 1 1 . . 2 2 Engine 6 | 1 . 2 . 1 1 . . . 1 Core 3 | . . . . . . . . 2 1 Reactor . | . . . . . . . . . . Propulsion 19 | 2 . 5 . 1 1 . 1 3 6 Treads 4 | 2 . . . . . . . . 2 Leg 1 | . . . . . . . . . 1 Wheel . | . . . . . . . . . . Hover . | . . . . . . . . . . Flight 14 | . . 5 . 1 1 . 1 3 3 Utility 17 | 1 . 1 1 . 3 . 1 5 5 Device 8 | . . 1 1 . 1 . . 2 3 Storage 1 | 1 . . . . . . . . . Processor 1 | . . . . . . . 1 . . Hackware 2 | . . . . . . . . 2 . Protection 5 | . . . . . 2 . . 1 2 Artifact . | . . . . . . . . . . Weapon 12 | 2 . 2 1 . . 1 . 4 2 Energy Gun 6 | 1 . . 1 . . 1 . 3 . Energy Cannon 1 | . . . . . . . . . 1 Ballistic Gun 3 | 1 . 1 . . . . . 1 . Ballistic Cannon 1 | . . . . . . . . . 1 Launcher . | . . . . . . . . . . Special Weapon 1 | . . 1 . . . . . . . Impact Weapon . | . . . . . . . . . . Slashing Weapon . | . . . . . . . . . . Piercing Weapon . | . . . . . . . . . . Special Melee Weapon . | . . . . . . . . . . Unidentified Prototypes 3 | . . . 2 . 1 . . . . Parts Lost 24 | . . 3 . 1 . . . 15 5 Power 5 | . . 1 . . . . . 4 . Propulsion 7 | . . 1 . 1 . . . 3 2 Utility 6 | . . . . . . . . 4 2 Weapon 6 | . . 1 . . . . . 4 1 Highest Loss Streak 5 | . . 3 . 1 . . . 5 4 To Critical Strikes . | . . . . . . . . . . Average Backups 5 | 1 2 7 6 4 6 7 5 4 4 Power . | . 1 1 1 1 . . . . . Propulsion 2 | . . 2 3 3 3 4 3 1 . Utility 1 | . . . . . 2 2 2 1 2 Weapon . | 1 1 3 1 . . . . 1 1 Tool/Special . | . . . . . . . . . . Unused Backups 10 | . . 2 3 . 2 . . . 3 Power . | . . . . . . . . . . Propulsion 2 | . . 1 . . 1 . . . . Utility 4 | . . . 1 . 1 . . . 2 Weapon 4 | . . 1 2 . . . . . 1 Tool/Special . | . . . . . . . . . . Average Slot Usage (%) 71 | . 85 67 78 84 62 63 67 70 60 Engine 11 | . 14 12 14 14 17 18 15 1 . Core 1 | . . . . . . . . 9 . Treads 2 | . 28 3 . . . . . . 7 Flight 19 | . . 23 28 27 9 9 15 20 20 Device 8 | . . 2 14 14 9 9 7 6 1 Storage 10 | . 14 14 14 14 9 9 7 7 7 Protection 4 | . . . . . 8 9 7 7 10 Energy Gun 7 | . 14 4 7 14 9 9 7 6 . Ballistic Gun 1 | . 14 6 . . . . . 2 . Peak Build Rating 71 | 6 6 6 32 32 65 65 71 71 43 Average Rating 36 | 4 6 4 19 31 63 64 70 47 30 On Entrance 29 | . 6 6 5 32 32 65 65 71 14 Avg Prop Armor Cover (%) 14 | . . . . . . . . 5 16 Naked Turns . | . . . . . . . . . . Heaviest Build 32 | 13 13 13 17 17 28 28 28 32 29 Greatest Support 55 | 40 40 40 8 8 50 50 55 55 28 Greatest Overweight (x) 6 | . . 3 2 4 . . . 6 1 Average Overweight (x) . | . . . 1 2 . . . . . Largest Inventory Capacity 8 | 8 8 8 8 8 8 8 8 8 8 Average Capacity 7 | 7 8 8 8 8 8 8 8 8 8 Most Carried 8 | 5 5 8 8 8 8 8 6 8 8 Average Carried 6 | 2 2 7 7 7 6 7 5 5 5 Final Capacity 8 | 8 8 8 8 8 8 8 8 8 8 Final Carried 8 | 2 5 8 8 8 7 7 5 4 8 Class Distribution -------------------- 81% | Mutant 15% | Scavenger-Mutant 3% | Sprinter Dominant Class ---------------- Mutant | -10/Materials Mutant | -10/Mines Mutant | -10/Exiles Mutant | -9/Mines Mutant | -8/Materials Mutant | -8/Garrison Mutant | -7/Factory Scavenger-Mutant | -7/Garrison Mutant | -7/Factory Resources | -11 -10 -10 -10 -9 -8 -8 -7 -7 -7 ----------- Run | Yrd Mat Min Exi Min Mat Gar Fac Gar Fac Matter Collected 767 | 140 . 220 . 60 50 20 . 167 110 Remotely . | . . . . . . . . . . Salvage Created 1809 | . . 93 . 279 786 234 . 314 103 Parts 100 | . . 15 . 12 38 11 . 17 7 Haulers Intercepted . | . . . . . . . . . . Recyclers Shooed 2 | . . 1 . 1 . . . . . Parts Field Recycled . | . . . . . . . . . . Retrieved Matter . | . . . . . . . . . . Parts Self-Destructed . | . . . . . . . . . . Prevented . | . . . . . . . . . . Parts Restored . | . . . . . . . . . . Kills | -11 -10 -10 -10 -9 -8 -8 -7 -7 -7 ------- Run | Yrd Mat Min Exi Min Mat Gar Fac Gar Fac Combat Hostiles Destroyed 54 | . . 6 . 12 19 7 . 8 2 Guns 51 | . . 6 . 11 19 7 . 8 . Cannons 1 | . . . . . . . . . 1 AOE 2 | . . . . 1 . . . . 1 Classes Destroyed 8 | . . 1 . 3 3 . . . 1 Recycler 1 | . . . . 1 . . . . . Watcher 3 | . . . . . 3 . . . . Swarmer 29 | . . 6 . 7 9 4 . 3 . Grunt 14 | . . . . 2 4 3 . 5 . Brawler 1 | . . . . . 1 . . . . Sentry 6 | . . . . . 5 . . . 1 Programmer 1 | . . . . . . . . . 1 Assembled 3 | . . . . 3 . . . . . Best Kill Streak 8 | . . 3 . 4 8 7 . 6 1 Combat Bots Only 7 | . . 3 . 4 5 7 . 6 1 Max Kills in Single Turn 2 | . . 2 . 1 1 1 . 1 1 Gunslinging 1 | . . 1 . . . . . . . Exploded 1 | . . . . 1 . . . . 1 Melee . | . . . . . . . . . . Uniques/NPCs Destroyed . | . . . . . . . . . . Combat | -11 -10 -10 -10 -9 -8 -8 -7 -7 -7 -------- Run | Yrd Mat Min Exi Min Mat Gar Fac Gar Fac Hostile Shots Fired 573 | . . 47 . 16 61 21 . 225 203 Missed 226 | . . 10 . 3 33 10 . 80 90 Hits 347 | . . 37 . 13 28 11 . 145 113 Projectile 347 | . . 37 . 13 28 11 . 145 113 Critical Strikes 9 | . . . . . 1 . . 6 2 Damage Taken 4192 | . . 391 . 137 316 143 . 2182 1023 Core 852 | . . 64 . 17 27 37 . 524 183 Absorbed by Shields 147 | . . . . . . . . 123 24 Redirected to Shielding 45 | . . . . . . . . 45 . Core Remaining (%) 85 | 100 . . . 67 . 88 . . . Volleys Fired 57 | . . 15 . . . 4 . 32 6 Largest 2 | . . 2 . . . 1 . 2 1 Hottest 88 | . . 70 . . . 65 . 88 69 Shots Fired 224 | . . 27 . 28 76 30 . 57 6 Gun 218 | . . 27 . 28 76 30 . 57 . Cannon 6 | . . . . . . . . . 6 Launcher . | . . . . . . . . . . Special . | . . . . . . . . . . Kinetic 40 | . . 15 . . . . . 21 4 Thermal 182 | . . 12 . 28 76 30 . 36 . Explosive . | . . . . . . . . . . Electromagnetic 2 | . . . . . . . . . 2 Robot Hit Streak 14 | . . 6 . 13 14 6 . 11 2 Robot Miss Streak 6 | . . 3 . 3 3 6 . 4 2 Penetration Max . | . . . . . . . . . . Secondary Targets 4 | . . 3 . . . . . 1 . Max Gunslinging Chain 1 | . . 1 . . . . . 1 . Autonomous 146 | . . . . 28 76 26 . 16 . Shots Hit Robots 145 | . . 15 . 19 57 17 . 33 4 Core Hits 78 | . . 8 . 13 26 10 . 18 3 Critical Kills . | . . . . . . . . . . Critical Parts Destroyed . | . . . . . . . . . . Critical Strikes 2 | . . . . . . . . 1 1 Burn 1 | . . . . . . . . 1 . Blast 1 | . . . . . . . . . 1 Melee Attacks . | . . . . . . . . . . Impact . | . . . . . . . . . . Slashing . | . . . . . . . . . . Piercing . | . . . . . . . . . . Sneak Attacks . | . . . . . . . . . . Combat Hostiles . | . . . . . . . . . . Follow-up Attacks . | . . . . . . . . . . Damage Inflicted 4071 | . . 168 . 746 1687 552 . 724 194 Guns 3749 | . . 168 . 618 1687 552 . 724 . Cannons 120 | . . . . . . . . . 120 Explosions 195 | . . . . 122 . . . . 73 Melee . | . . . . . . . . . . Ramming 7 | . . . . 6 . . . . 1 Kinetic 324 | . . 56 . . . . . 194 74 Thermal 3694 | . . 112 . 740 1687 552 . 530 73 Explosive . | . . . . . . . . . . Electromagnetic 46 | . . . . . . . . . 46 Impact . | . . . . . . . . . . Slashing . | . . . . . . . . . . Piercing . | . . . . . . . . . . Highest Corruption 9 | . . . . . . . . 6 9 Average Corruption 5 | . . . . . . . . 4 6 Corruption Purged . | . . . . . . . . . . Corruption Blocked . | . . . . . . . . . . Effects 14 | . . . . . . . . 3 11 Message Errors 3 | . . . . . . . . 2 1 Matter Fused 5 | . . . . . . . . . 5 Heat Flow Errors 2 | . . . . . . . . . 2 Energy Discharges 3 | . . . . . . . . 1 2 Parts Rejected 1 | . . . . . . . . . 1 Overload Shots . | . . . . . . . . . . Overflow Damage 17 | . . . . 17 . . . . . Projectiles . | . . . . . . . . . . Explosions 17 | . . . . 17 . . . . . Melee . | . . . . . . . . . . Knockbacks . | . . . . . . . . . . Impact . | . . . . . . . . . . Kinetic . | . . . . . . . . . . Secondary . | . . . . . . . . . . Self-Inflicted Damage 2 | . . . . 2 . . . . . Shots . | . . . . . . . . . . Rammed 3 | . . . . 2 . . . . 1 Targets Rammed 3 | . . . . 2 . . . . 1 Kicked . | . . . . . . . . . . Crushed . | . . . . . . . . . . Highest Temperature 633 | . . 84 . . 20 138 . 633 154 Average Temperature 136 | . . 38 . . 5 50 . 220 44 Received Heat Transfer 1294 | . . 63 . 6 108 54 . 843 220 Effects 18 | . . . . . . . . 18 . Shutdowns 7 | . . . . . . . . 7 . Energy Bleed 3 | . . . . . . . . 3 . Interference 3 | . . . . . . . . 3 . Short Circuit 5 | . . . . . . . . 5 . Siege Activations . | . . . . . . . . . . Martial Activations . | . . . . . . . . . . Shielding Activations . | . . . . . . . . . . Robots Disrupted . | . . . . . . . . . . Combat Hostiles . | . . . . . . . . . . Robots Corrupted . | . . . . . . . . . . Combat Hostiles . | . . . . . . . . . . Parts Fried . | . . . . . . . . . . Impact Corruptions . | . . . . . . . . . . Robots Melted . | . . . . . . . . . . Combat Hostiles . | . . . . . . . . . . Parts Melted 6 | . . . . 3 2 1 . . . Heat Transferred 5102 | . . 333 . 927 2146 703 . 943 50 Parts Sabotaged . | . . . . . . . . . . Parts Stolen . | . . . . . . . . . . Parts Stripped . | . . . . . . . . . . Power Chain Reactions 1 | . . . . . . . . . 1 Alert | -11 -10 -10 -10 -9 -8 -8 -7 -7 -7 ------- Run | Yrd Mat Min Exi Min Mat Gar Fac Gar Fac Maximum Alert Level 2 | . . . . . 2 2 1 2 1 Low Security (%) 62 | 100 100 100 . 100 35 . . 4 91 Level 1 24 | . . . . . 24 50 100 86 8 Level 2 13 | . . . . . 39 49 . 9 . Level 3 . | . . . . . . . . . . Level 4 . | . . . . . . . . . . Level 5 . | . . . . . . . . . . High Security . | . . . . . . . . . . Max Security . | . . . . . . . . . . Peak Influence 559 | . . 70 . 114 502 559 293 448 214 Initial 315 | . . . . . 12 315 293 198 214 Average 177 | . . 38 . 28 296 410 289 322 127 Influence Increases 1846 | . . 190 . 233 688 244 . 360 131 Destroy 0b10 Robot/C 1060 | . . 160 . 180 380 140 . 160 40 Destroy 0b10 Robot/NC 20 | . . . . 5 15 . . . . Destroy Leader 166 | . . 20 . 20 96 10 . . 20 Allied During Kill 10 | . . 10 . . . . . . . Successful Hack 40 | . . . . . 20 14 . . 6 Disable Machine 30 | . . . . 15 15 . . . . Anti-Garrison Action 100 | . . . . . . 50 . 50 . Destroy Structure 30 | . . . . 13 12 . . . 5 Partial Spotted 15 | . . . . . 15 . . . . Lose Combat Pursuer 375 | . . . . . 135 30 . 150 60 Influence Decreases 1773 | . . 160 30 201 234 171 276 235 466 Entered New Map 766 | . . . 30 . 20 171 266 85 194 Time Decay 767 | . . 130 . 191 214 . 10 . 222 Lost Part 240 | . . 30 . 10 . . . 150 50 Squads Dispatched 7 | . . . . . 4 . . . 3 Investigation 1 | . . . . . . . . . 1 Extermination 1 | . . . . . . . . . 1 Reinforcement 2 | . . . . . 1 . . . 1 Assault . | . . . . . . . . . . Garrison 3 | . . . . . 3 . . . . Intercept . | . . . . . . . . . . Searches Triggered . | . . . . . . . . . . Construction Impeded . | . . . . . . . . . . Haulers Reinforced . | . . . . . . . . . . Active Scanning Responses . | . . . . . . . . . . Cargo Convoy Interrupts . | . . . . . . . . . . Stealth | -11 -10 -10 -10 -9 -8 -8 -7 -7 -7 --------- Run | Yrd Mat Min Exi Min Mat Gar Fac Gar Fac Distress Signals 2 | . . . . . 2 . . . . Communications Jammed . | . . . . . . . . . . Distress Signals . | . . . . . . . . . . Times Spotted 95 | . . 8 . 11 32 7 1 25 11 Peak Tracking Total 13 | . . 4 . 3 8 8 1 13 5 Tactical Retreats 11 | . . . . . 4 1 . 4 2 Traps | -11 -10 -10 -10 -9 -8 -8 -7 -7 -7 ------- Run | Yrd Mat Min Exi Min Mat Gar Fac Gar Fac Traps Triggered 10 | . . . . . . 3 . 5 2 Indirectly . | . . . . . . . . . . Trap Hack Attempts . | . . . . . . . . . . Triggered . | . . . . . . . . . . Disarmed . | . . . . . . . . . . Reprogrammed . | . . . . . . . . . . Reused . | . . . . . . . . . . Traps Reconfigurated 5 | . . . . . . 4 . 1 . Traps Extracted . | . . . . . . . . . . Installed . | . . . . . . . . . . Triggered . | . . . . . . . . . . Machines | -11 -10 -10 -10 -9 -8 -8 -7 -7 -7 ---------- Run | Yrd Mat Min Exi Min Mat Gar Fac Gar Fac Machines Disabled 4 | . . . . 1 1 1 . 1 . Max in Single Turn 1 | . . . . 1 1 1 . 1 . Garrison Relay 2 | . . . . . . 1 . 1 . Machines Repaired . | . . . . . . . . . . Machines Dismantled . | . . . . . . . . . . Machines Sabotaged . | . . . . . . . . . . Overloaded Fab Kills . | . . . . . . . . . . Hacking | -11 -10 -10 -10 -9 -8 -8 -7 -7 -7 --------- Run | Yrd Mat Min Exi Min Mat Gar Fac Gar Fac Machines Accessed 11 | . . . . . 7 1 2 . 1 Terminals 7 | . . . . . 4 1 1 . 1 Fabricators . | . . . . . . . . . . Repair Stations . | . . . . . . . . . . Recycling Units . | . . . . . . . . . . Scanalyzers 2 | . . . . . 2 . . . . Garrison Access 2 | . . . . . 1 . 1 . . Total Hacks 24 | . . . . . 17 1 3 . 3 Successful 16 | . . . . . 12 1 2 . 1 Failed 8 | . . . . . 5 . 1 . 2 Catastrophic 2 | . . . . . 1 . 1 . . Database Lockouts . | . . . . . . . . . . Manual 6 | . . . 1 . 2 . . . 3 Terminals 16 | . . . . . 10 1 2 . 3 Fabricators . | . . . . . . . . . . Repair Stations . | . . . . . . . . . . Recycling Units . | . . . . . . . . . . Scanalyzers 6 | . . . . . 6 . . . . Garrison Access 2 | . . . . . 1 . 1 . . Terminal Hacks 9 | . . . . . 6 1 1 . 1 Record 3 | . . . . . 2 . 1 . . Emergency Access Points 1 | . . . . . . 1 . . . Alert Level 2 | . . . . . 2 . . . . Zone Layout 3 | . . . . . 2 . . . 1 Fabricator Hacks . | . . . . . . . . . . Repair Station Hacks . | . . . . . . . . . . Recycling Unit Hacks . | . . . . . . . . . . Scanalyzer 5 | . . . . . 5 . . . . Insert Component 2 | . . . . . 2 . . . . Analyze 2 | . . . . . 2 . . . . Retrieve Study 1 | . . . . . 1 . . . . Garrison Access Hacks 2 | . . . . . 1 . 1 . . Unlock Access 2 | . . . . . 1 . 1 . . Unauthorized Hacks . | . . . . . . . . . . Terminals . | . . . . . . . . . . Fabricators . | . . . . . . . . . . Repair Stations . | . . . . . . . . . . Recycling Units . | . . . . . . . . . . Scanalyzers . | . . . . . . . . . . Garrison Access . | . . . . . . . . . . Data Cores Recovered . | . . . . . . . . . . Used . | . . . . . . . . . . Hacking Detections 7 | . . . . . 4 . 2 . 1 Full Trace Events 1 | . . . . . . . . . 1 Feedback Events . | . . . . . . . . . . Feedback Blocked . | . . . . . . . . . . Robot Schematics Acquired . | . . . . . . . . . . Robots Built . | . . . . . . . . . . Authchips . | . . . . . . . . . . Time . | . . . . . . . . . . Total Robot Build Rating . | . . . . . . . . . . Part Schematics Acquired 2 | . . . . . 2 . . . . Parts Built . | . . . . . . . . . . Authchips . | . . . . . . . . . . Time . | . . . . . . . . . . Total Part Build Rating . | . . . . . . . . . . Part Studies Acquired 1 | . . . . . 1 . . . . Parts Repaired . | . . . . . . . . . . Time . | . . . . . . . . . . Parts Recycled . | . . . . . . . . . . Recycled Matter . | . . . . . . . . . . Retrieved Matter . | . . . . . . . . . . Retrieved Components . | . . . . . . . . . . Parts Scanalyzed 2 | . . . . . 2 . . . . Part Schematics Acquired 2 | . . . . . 2 . . . . Parts Damaged . | . . . . . . . . . . Bothacking | -11 -10 -10 -10 -9 -8 -8 -7 -7 -7 ------------ Run | Yrd Mat Min Exi Min Mat Gar Fac Gar Fac Used RIF Installer 1 | . . . . . . 1 . . . Robots Hacked . | . . . . . . . . . . Non-combat . | . . . . . . . . . . Combat . | . . . . . . . . . . Robot Hacks Applied . | . . . . . . . . . . Relay Couplers Released 10 | . . . . . . 5 . 5 . Machine Destruction 10 | . . . . . . 5 . 5 . Attached 2 | . . . . . . . . 2 . Fabnet Peak Effective % . | . . . . . . . . . . Robots Rewired . | . . . . . . . . . . Allies Hacked . | . . . . . . . . . . Hacks Repelled . | . . . . . . . . . . Allies | -11 -10 -10 -10 -9 -8 -8 -7 -7 -7 -------- Run | Yrd Mat Min Exi Min Mat Gar Fac Gar Fac Total Allies 2 | . . 2 . . . . . . . Largest Group 2 | . . 2 2 . . . . . . Highest-Rated Group 46 | . . 46 46 . . . . . . Highest-Rated Ally 31 | . . 31 31 . . . . . . Total Orders . | . . . . . . . . . . Ally Attacks 2 | . . 2 . . . . . . . Total Damage 44 | . . 44 . . . . . . . Kills 2 | . . 2 . . . . . . . Allies Corrupted . | . . . . . . . . . . Allies Melted . | . . . . . . . . . . Intel | -11 -10 -10 -10 -9 -8 -8 -7 -7 -7 ------- Run | Yrd Mat Min Exi Min Mat Gar Fac Gar Fac Active Infowar (turns) 151 | . . . . . . . 30 120 1 Optics 150 | . . . . . . . 30 120 . Sensors 1 | . . . . . . . . . 1 Robot Analysis Total . | . . . . . . . . . . Derelict Logs Recovered . | . . . . . . . . . . Drone Launches . | . . . . . . . . . . Drone Recoveries . | . . . . . . . . . . Exploration | -11 -10 -10 -10 -9 -8 -8 -7 -7 -7 ------------- Run | Yrd Mat Min Exi Min Mat Gar Fac Gar Fac Turns Passed 2953 | 59 71 260 383 600 447 258 31 374 470 Spaces Moved 3221 | 32 43 345 249 295 848 462 73 453 421 Core 5 | 5 . . . . . . . . . Treads 85 | 27 43 3 . . . . . . 12 Legs 213 | . . . . . . . . . 213 Wheels . | . . . . . . . . . . Hover . | . . . . . . . . . . Flight 2918 | . . 342 249 295 848 462 73 453 196 Fastest Speed 26 | 50 160 37 117 197 50 50 39 26 26 Average Speed 80 | 142 160 55 150 198 50 50 39 49 100 Slowest Speed 455 | 160 160 280 197 360 50 50 39 455 190 Overloaded Moves . | . . . . . . . . . . Propulsion Burnouts . | . . . . . . . . . . Robots Hopped 10 | . . . . . 4 . . 6 . Potential Cave-ins . | . . . . . . . . . . Cave-ins Triggered . | . . . . . . . . . . Exploration Rate (%) 36 | 4 11 70 60 55 65 36 4 42 17 Regions Visited 9 Branch Regions 3 Pre-discovered Areas . | . . . . . . . . . . Known Exits Taken 2 | . . . . . 1 . 1 . . Unknown Exits Taken 5 | 1 1 1 1 1 . . . . . Scrap Searched 3 | . . 1 . 2 . . . . . Spaces Dug . | . . . . . . . . . . Terrain Destroyed 30 | . . . . 14 12 . . . 4 Melee . | . . . . . . . . . . Projectile 19 | . . . . 6 12 . . . 1 AOE 11 | . . . . 8 . . . . 3 Terrain Rammed . | . . . . . . . . . . Walls Destroyed . | . . . . . . . . . . Machines Disabled . | . . . . . . . . . . Actions | -11 -10 -10 -10 -9 -8 -8 -7 -7 -7 --------- Run | Yrd Mat Min Exi Min Mat Gar Fac Gar Fac Total 3500 | 45 45 392 260 309 870 486 75 557 461 Wait 31 | . . 4 . 7 . . . 18 2 Move 3195 | 31 42 344 248 294 841 461 73 440 421 Hop 9 | . . . . . 3 . . 6 . Pick Up 64 | 8 3 10 4 1 12 3 . 11 12 Fast Attach 8 | . . 1 . 1 . 1 . . 5 Attach 40 | 6 . 6 1 . 3 3 2 11 8 Detach 4 | . . 1 . . . 1 . . 2 Swap 14 | . . 4 1 2 2 . . 3 2 Drop 31 | . . 7 6 2 9 4 . 1 2 Fire 57 | . . 15 . . . 4 . 32 6 Melee . | . . . . . . . . . . Ram 3 | . . . . 2 . . . . 1 Kick . | . . . . . . . . . . Crush . | . . . . . . . . . . Escape Stasis 44 | . . . . . . 9 . 35 . Rewire . | . . . . . . . . . . Trap . | . . . . . . . . . . Miscellaneous . | . . . . . . . . . . Route ------- -11/Scrapyard -10/Materials -10/Mines -10/Exiles (discovered 2 exits: [*Min x2]) -9/Mines -8/Materials (discovered 4 exits: *Fac x3 / Gar) -8/Garrison -7/Factory -7/Garrison (discovered 2 exits: *Fac x2) -7/Factory History --------- Turn | Location | Event 18 | -11/Scrapyard | Discovered new exit (range 15) 60 | -11/Scrapyard | Entered Materials 76 | -10/Materials | Discovered new exit (range 15) 131 | -10/Materials | Entered Mines 306 | -10/Mines | Build established: Mutant 346 | -10/Mines | Lost 3 parts (1p1n1w) 362 | -10/Mines | Deemed a non-threat by the Exiles lab entrance 363 | -10/Mines | Discovered new exit (range 5) 391 | -10/Mines | Entered Exiles 391 | -10/Exiles | Accompanied by 2 allies 411 | -10/Exiles | Discovered new exit (range 15) 421 | -10/Exiles | Led the pair of lost Derelicts to a safe place 428 | -10/Exiles | Met 8R-AWN 465 | -10/Exiles | Met EX-HEX 499 | -10/Exiles | Met EX-BIN 513 | -10/Exiles | Aligned with FarCom system 514 | -10/Exiles | Given EX-Vault access code 549 | -10/Exiles | Opened EX-Vault 561 | -10/Exiles | Found Prototype Energy Gun 562 | -10/Exiles | Identified AWS/Thermal 569 | -10/Exiles | Found Prototype Device 570 | -10/Exiles | Identified Trap Reconfigurator 575 | -10/Exiles | Found Prototype Flight Unit 619 | -10/Exiles | Warned to stay clear of 0b10 Research branches 676 | -10/Exiles | Met EX-DEC 759 | -10/Exiles | Discovered new exit (range 10) 774 | -10/Exiles | Stole three prototypes: Trap Reconfigurator, AWS/Thermal, Flying Fortress v7 774 | -10/Exiles | Entered Mines 790 | -9/Mines | Met a Derelict bent on vengeance 1004 | -9/Mines | Assembled infested the area 1363 | -9/Mines | Discovered new exit (range 5) 1374 | -9/Mines | Entered Materials 1374 | -8/Materials | Evolved 4 slots: Power x1, Propulsion x2, Utility x1 1377 | -8/Materials | Identified Flying Fortress v7 1451 | -8/Materials | Garrison activated, responded to threat 1550 | -8/Materials | Discovered new exit (range 16) 1691 | -8/Materials | Discovered new exit (range 15) 1736 | -8/Materials | Met 7R-MNS 1796 | -8/Materials | Discovered new exit (range 13) 1821 | -8/Materials | Identified exit to Garrison 1821 | -8/Materials | Entered Garrison 1847 | -8/Garrison | Installed Relay Interface Framework 1984 | -8/Garrison | Destroyed 7 combat bots 2031 | -8/Garrison | Discovered new exit (range 10) 2051 | -8/Garrison | Garrison Relay disabled 2079 | -8/Garrison | Entered Factory 2079 | -7/Factory | Evolved 2 slots: Propulsion x1, Utility x1 2081 | -7/Factory | FarCom data flow suspended 2110 | -7/Factory | Identified exit to Garrison 2110 | -7/Factory | Entered Garrison 2122 | -7/Garrison | Triggered checkpoint 2123 | -7/Garrison | Discovered new exit (range 6) 2137 | -7/Garrison | AWS/Thermal suddenly broke down 2212 | -7/Garrison | Triggered checkpoint 2329 | -7/Garrison | Garrison Relay disabled 2341 | -7/Garrison | Lost 5 parts (1n2u2w) 2426 | -7/Garrison | Triggered checkpoint 2434 | -7/Garrison | Discovered new exit (range 10) 2462 | -7/Garrison | Triggered checkpoint 2472 | -7/Garrison | Core integrity fell below 50% 2484 | -7/Garrison | Entered Factory 2511 | -7/Factory | Lost 5 parts (2n2u1w) 2705 | -7/Factory | Core integrity fell below 20% 2941 | -7/Factory | Lost 4 parts (1n2u1w) 2954 | -7/Factory | Destroyed by S-27 Virus with Autogun Last Messages --------------- Wheel. 02924_ R-06 Scavenger collects Med. Treads. 02928_ R-06 Scavenger collects Corrupted Gatling Laser. 02930_ Dropped Med. Treads. 02931_ K-01 Serf cleans the Terminal. 02933_ Dropped Imp. Carbon-fiber Leg. 02934_ Acquired Flak Gun. 02935_ O-24 Administrator: "IFF HANDSHAKE FAILED. SECURING TERMINAL." 02936_ U-05 Engineer works on Matter Pump. 02939_ Acquired Imp. Shield Generator. 02939_ ALERT: Hostiles spotted, dispatching reinforcements to Terminal F003. 02941_ Acquired Imp. Cooling System. 02945_ U-05 Engineer works on Matter Pump. 02946_ Triggered Shock Trap. 02946_ The floor emits a surge of raw power. 02946_ System corrupted (+1). 02952_ Imp. VTOL Module destroyed. Map ----- +----------------------------------------------------+ | ??????????????????????# !!! #??????? | | ????????????????????????? !!! #??????? | | ????????????????????????? """ !! #??????? | | ????????????????????????? """ #??????? | | ??????????????????????????"" """ #??????? | | ???????????????????????? S"" "" #??????? | | ???????????????????????# "" "" ! #??????? | | ???????????????????????# #??????? | | ????????????????????###############+#######??????? | | ????????????????????# #?# ######## | | ????????????????????# """ #?# | | ????????????????????# "R """ #?# = | | ????????????????????# """ """ #?# """ | | ????????????????????# """ #?# """ | | ????????????????????#/= #?# """ | | ????????????????????#= #?# """ ""T"" ### | | ????????????????????# #?# """"" #?? | | ????????????????????#####+##+##?# #?? | | ????????????????????????# #### #?? | | ????????????????????????# #?? | | ????????????????????????# #?? | | ????????????????????????# """ """ """ #?? | | ????????????????????????# """ """ " #?? | | ????????????????????????# """ """ #?? | | ????????????????????????# [#?? | | ????????????????????????#@ """ """ """ """ ??? | | ??????????????????????? s """ """ """ """ ???? | | ??????????????????????###### s""" """ ????"??????? | | ???????????????????????????# s ?????????????? | | ???????????????????????????# """ ""?????????????? | | ???????????????????????????# """ ""?????????????? | | ??????????????????????????? """ "??????????????? | | ??????????????????????????? ???????????????? | | ??????????????????????????? ""? ???????????????? | | ??????????????????????????? ??? ???????????????? | | ?????????????????????????????????????????????????? | | ?????????????????????????????????????????????????? | | ?????????????????????????????????????????????????? | | ?????????????????????????????????????????????????? | | ?????????????????????????????????????????????????? | | ?????????????????????????????????????????????????? | | ?????????????????????????????????????????????????? | | ?????????????????????????????????????????????????? | | ?????????????????????????????????????????????????? | | ?????????????????????????????????????????????????? | | ?????????????????????????????????????????????????? | | ?????????????????????????????????????????????????? | | ?????????????????????????????????????????????????? | | ?????????????????????????????????????????????????? | | ?????????????????????????????????????????????????? | +----------------------------------------------------+ Best States ------------- Heat Dissipation 61 Energy Generation 23 Energy Capacity 250 Matter Stores 300 Matter Capacity 300 Sight Range 20 Terrain Scan Density 10 Armor Coverage 225 Power Shielding 66 Evasion (%) 64 Recoil Reduction 2 Relay Coupler Types 1 Relay Coupler Value 21 Item Schematics ----------------- Imp. VTOL Module | -8/Materials | Scanalyzed Imp. Power Shielding | -8/Materials | Scanalyzed Robot Schematics ------------------ None Fabricated ------------ Nothing Repaired ---------- Nothing Studied --------- Lgt. Ion Engine | -8/Materials | Hacked Alien Tech Used ----------------- None Achievements -------------- Drive-By Morally Flexible Challenges ------------ None Game ------ Seed LinearBraceGutpuncher Manual? 0 Play Time 00:37:23 Cumulative 48.7 hours Start 2026.02.13 @ 14:29:45 End 2026.02.14 @ 23:48:32 Sessions 3 Manual Loads 0 Difficulty Rogue Special Mode None Game No. 88 Rogue 88 Adventurer 0 Explorer 0 Win Type - Total 0 Types 0/0/0/0/0/0/0/0/0/0 Lore% 20 Gallery% 39 Achievement% 23 Wizard Run 0 Options --------- Layout 1 ASCII 0 Keyboard 0 Movement Mouse Keybinds 0 Fullscreen 1 Font 32/SmallcapsGlow Map View 50x35 Zoom Use 0% Tactical HUD 1 Map Filters NONE Filters NONE Steam 1 RUN: 6b18639e-b336-46f3-9638-37f24935a86b